Cogmind - Beta 15 @@@ ROGUE MODE // 2025.05.10 @ 13:53:41 Player: GiggleBox Result: Destroyed by KT-1X5(R) with Subdweller Machine Gun Performance ------------- Evolutions (0) 0 Regions Visited (2) 400 Robots Destroyed (11) 55 Value Destroyed (232) 232 Prototype IDs (0) 0 Alien Tech Used (0) 0 Bonus (0) 0 TOTAL SCORE: 687 Bonus ------- None Cogmind --------- Core Integrity 0/250 Matter 239/300 Energy 95/100 System Corruption 0% Temperature Cool (0) Movement Walking (130) Location -10/Subcaves Parts ------- > --- POWER (1) -------- (None) > --- PROPULSION (2) --- Aluminum Leg Makeshift Leg > --- UTILITY (2) ------ Improved Heat Sink Medium Storage Unit > --- WEAPON (2) ------- Medium Laser Light Assault Rifle > --- INVENTORY (10) --- Light Ion Engine Light Ion Engine Aluminum Leg Aluminum Leg Aluminum Leg Structural Scanner Seismic Detector Mining Laser Peak State ------------ > --- POWER ------------ Ion Engine > --- PROPULSION ------- Aluminum Leg Makeshift Leg > --- UTILITY ---------- Improved Heat Sink Medium Storage Unit > --- WEAPON ----------- Medium Laser Light Assault Rifle > --- INVENTORY -------- Light Ion Engine Light Ion Engine Aluminum Leg Aluminum Leg Aluminum Leg Structural Scanner Seismic Detector Mining Laser [Rating: 12] Favorites ----------- Power Light Ion Engine Engine Light Ion Engine Propulsion Aluminum Leg Leg Aluminum Leg Utility Seismic Detector Device Seismic Detector Storage Small Storage Unit Weapon Medium Laser Energy Gun Medium Laser Ballistic Gun Light Assault Rifle Special Weapon Mining Laser Build | -11 -10 -10 ------- Run | Yrd Mat Sub Slots Evolved . | . . . Power . | . . . Propulsion . | . . . Utility . | . . . Weapon . | . . . Parts Attached 15 | 7 5 3 Power 2 | 1 1 . Engine 2 | 1 1 . Core . | . . . Reactor . | . . . Propulsion 3 | 2 . 1 Treads . | . . . Leg 3 | 2 . 1 Wheel . | . . . Hover . | . . . Flight . | . . . Utility 6 | 2 3 1 Device 4 | 1 2 1 Storage 2 | 1 1 . Processor . | . . . Hackware . | . . . Protection . | . . . Artifact . | . . . Weapon 4 | 2 1 1 Energy Gun 1 | 1 . . Energy Cannon . | . . . Ballistic Gun 2 | 1 . 1 Ballistic Cannon . | . . . Launcher . | . . . Special Weapon 1 | . 1 . Impact Weapon . | . . . Slashing Weapon . | . . . Piercing Weapon . | . . . Special Melee Weapon . | . . . Unidentified Prototypes . | . . . Parts Lost 2 | . . 2 Power 1 | . . 1 Propulsion . | . . . Utility . | . . . Weapon 1 | . . 1 Highest Loss Streak 1 | . . 1 To Critical Strikes . | . . . Average Backups 5 | 1 5 8 Power 1 | . 1 2 Propulsion 1 | . . 2 Utility 1 | . 1 2 Weapon 1 | . 1 1 Tool/Special . | . . . Unused Backups 3 | . . 3 Power 1 | . . 1 Propulsion 2 | . . 2 Utility . | . . . Weapon . | . . . Tool/Special . | . . . Average Slot Usage (%) 98 | . 100 94 Engine 13 | . 14 13 Leg 28 | . 28 28 Device 14 | . 14 14 Storage 14 | . 14 14 Energy Gun 13 | . 13 14 Ballistic Gun 12 | . 13 9 Peak Build Rating 12 | 7 8 12 Average Rating 7 | 5 7 10 On Entrance 5 | . 7 8 Naked Turns . | . . . Heaviest Build 19 | 12 19 19 Greatest Support 30 | 20 20 30 Greatest Overweight (x) . | . . . Average Overweight (x) . | . . . Largest Inventory Capacity 10 | 8 10 10 Average Capacity 8 | 7 8 10 Most Carried 9 | 2 8 9 Average Carried 5 | 1 5 8 Final Capacity 10 | 8 10 10 Final Carried 8 | 2 8 8 Class Distribution -------------------- 100% | Mutant Dominant Class ---------------- Mutant | -10/Materials Mutant | -10/Subcaves Resources | -11 -10 -10 ----------- Run | Yrd Mat Sub Matter Collected 439 | 276 116 47 Remotely . | . . . Salvage Created 381 | 107 227 47 Parts 22 | 4 14 4 Haulers Intercepted . | . . . Recyclers Shooed 1 | . 1 . Parts Field Recycled . | . . . Retrieved Matter . | . . . Parts Self-Destructed . | . . . Prevented . | . . . Kills | -11 -10 -10 ------- Run | Yrd Mat Sub Combat Hostiles Destroyed 6 | . 5 1 Guns 6 | . 5 1 Classes Destroyed 6 | 2 3 1 Worker 1 | . 1 . Tunneler 2 | 1 1 . Recycler 2 | 1 1 . Swarmer 2 | . 2 . Grunt 3 | . 3 . Subdweller 1 | . . 1 Best Kill Streak 4 | 2 4 1 Combat Bots Only 2 | . 2 1 Max Kills in Single Turn 3 | 1 3 1 Gunslinging . | . . . Exploded . | . . . Melee . | . . . Uniques/NPCs Destroyed . | . . . Combat | -11 -10 -10 -------- Run | Yrd Mat Sub Hostile Shots Fired 64 | . 31 33 Missed 17 | . 9 8 Hits 47 | . 22 25 Projectile 47 | . 22 25 Critical Strikes 1 | . . 1 Damage Taken 755 | . 240 515 Core 262 | . 50 212 Absorbed by Shields . | . . . Core Remaining (%) 100 | 100 . . Volleys Fired 55 | 6 24 25 Largest 2 | 2 2 2 Hottest 100 | 70 100 70 Shots Fired 102 | 12 43 47 Gun 97 | 12 38 47 Cannon . | . . . Launcher . | . . . Special 5 | . 5 . Kinetic 47 | 6 19 22 Thermal 55 | 6 24 25 Explosive . | . . . Electromagnetic . | . . . Robot Hit Streak 21 | 9 11 21 Robot Miss Streak 4 | 2 4 1 Penetration Max . | . . . Secondary Targets . | . . . Shots Hit Robots 74 | 9 22 43 Core Hits 21 | 4 13 4 Critical Kills 1 | . 1 . Critical Parts Destroyed . | . . . Critical Strikes 3 | 1 1 1 Burn 2 | 1 . 1 Destroy 1 | . 1 . Melee Attacks . | . . . Impact . | . . . Slashing . | . . . Piercing . | . . . Sneak Attacks . | . . . Combat Hostiles . | . . . Follow-up Attacks . | . . . Damage Inflicted 996 | 91 459 446 Guns 754 | 91 217 446 Cannons . | . . . Explosions 227 | . 227 . Melee . | . . . Ramming 15 | . 15 . Kinetic 314 | 41 92 181 Thermal 667 | 50 352 265 Explosive . | . . . Electromagnetic . | . . . Impact . | . . . Slashing . | . . . Piercing . | . . . Highest Corruption . | . . . Average Corruption . | . . . Corruption Purged . | . . . Corruption Blocked . | . . . Overload Shots . | . . . Overflow Damage 70 | . 70 . Projectiles . | . . . Explosions 70 | . 70 . Melee . | . . . Knockbacks . | . . . Impact . | . . . Kinetic . | . . . Secondary . | . . . Self-Inflicted Damage . | . . . Shots . | . . . Rammed . | . . . Targets Rammed 3 | . 3 . Kicked 3 | . 3 . Crushed . | . . . Highest Temperature 225 | 90 225 . Average Temperature 58 | 48 60 . Received Heat Transfer 99 | . 99 . Siege Activations . | . . . Martial Activations . | . . . Shielding Activations . | . . . Robots Disrupted . | . . . Combat Hostiles . | . . . Robots Corrupted . | . . . Combat Hostiles . | . . . Parts Fried . | . . . Impact Corruptions . | . . . Robots Melted . | . . . Combat Hostiles . | . . . Parts Melted 2 | . . 2 Heat Transferred 1593 | 222 520 851 Parts Sabotaged . | . . . Parts Stolen . | . . . Parts Stripped . | . . . Power Chain Reactions . | . . . Alert | -11 -10 -10 ------- Run | Yrd Mat Sub Maximum Alert Level . | . . . Low Security (%) 100 | 100 100 . Level 1 . | . . . Level 2 . | . . . Level 3 . | . . . Level 4 . | . . . Level 5 . | . . . High Security . | . . . Max Security . | . . . Peak Influence 120 | 5 120 . Initial . | . . . Average 42 | . 49 . Influence Increases 228 | 10 218 . Destroy 0b10 Robot/C 100 | . 100 . Destroy 0b10 Robot/NC 25 | 10 15 . Destroy Leader 20 | . 20 . Successful Hack 14 | . 14 . Disable Machine 45 | . 45 . Destroy Structure 24 | . 24 . Influence Decreases 228 | 10 165 53 Entered New Map 26 | . . 26 Time Decay 192 | 10 165 17 Lost Part 10 | . . 10 Squads Dispatched . | . . . Investigation . | . . . Extermination . | . . . Reinforcement . | . . . Assault . | . . . Garrison . | . . . Intercept . | . . . Searches Triggered . | . . . Construction Impeded . | . . . Haulers Reinforced . | . . . Active Scanning Responses . | . . . Cargo Convoy Interrupts . | . . . Stealth | -11 -10 -10 --------- Run | Yrd Mat Sub Distress Signals 1 | . 1 . Communications Jammed . | . . . Distress Signals . | . . . Times Spotted 14 | . 11 3 Peak Tracking Total 4 | . 4 2 Tactical Retreats . | . . . Traps | -11 -10 -10 ------- Run | Yrd Mat Sub Traps Triggered . | . . . Indirectly . | . . . Trap Hack Attempts . | . . . Triggered . | . . . Disarmed . | . . . Reprogrammed . | . . . Reused . | . . . Traps Extracted . | . . . Installed . | . . . Triggered . | . . . Machines | -11 -10 -10 ---------- Run | Yrd Mat Sub Machines Disabled 3 | . 3 . Max in Single Turn 3 | . 3 . Machines Repaired . | . . . Machines Dismantled . | . . . Machines Sabotaged . | . . . Overloaded Fab Kills . | . . . Hacking | -11 -10 -10 --------- Run | Yrd Mat Sub Machines Accessed 3 | . 3 . Terminals 3 | . 3 . Fabricators . | . . . Repair Stations . | . . . Recycling Units . | . . . Scanalyzers . | . . . Garrison Access . | . . . Total Hacks 5 | . 5 . Successful 1 | . 1 . Failed 4 | . 4 . Catastrophic . | . . . Database Lockouts . | . . . Manual 5 | . 5 . Terminals 5 | . 5 . Fabricators . | . . . Repair Stations . | . . . Recycling Units . | . . . Scanalyzers . | . . . Garrison Access . | . . . Terminal Hacks . | . . . Fabricator Hacks . | . . . Repair Station Hacks . | . . . Recycling Unit Hacks . | . . . Scanalyzer . | . . . Garrison Access Hacks . | . . . Unauthorized Hacks 1 | . 1 . Terminals 1 | . 1 . Skim 1 | . 1 . Fabricators . | . . . Repair Stations . | . . . Recycling Units . | . . . Scanalyzers . | . . . Garrison Access . | . . . Data Cores Recovered . | . . . Used . | . . . Hacking Detections 2 | . 2 . Full Trace Events . | . . . Feedback Events . | . . . Feedback Blocked . | . . . Robot Schematics Acquired . | . . . Robots Built . | . . . Authchips . | . . . Time . | . . . Total Robot Build Rating . | . . . Part Schematics Acquired . | . . . Parts Built . | . . . Authchips . | . . . Time . | . . . Total Part Build Rating . | . . . Parts Repaired . | . . . Time . | . . . Parts Recycled . | . . . Recycled Matter . | . . . Retrieved Matter . | . . . Retrieved Components . | . . . Parts Scanalyzed . | . . . Part Schematics Acquired . | . . . Parts Damaged . | . . . Bothacking | -11 -10 -10 ------------ Run | Yrd Mat Sub Used RIF Installer . | . . . Robots Hacked . | . . . Non-combat . | . . . Combat . | . . . Robot Hacks Applied . | . . . Relay Couplers Released . | . . . Fabnet Peak Effective % . | . . . Robots Rewired . | . . . Allies Hacked . | . . . Hacks Repelled . | . . . Allies | -11 -10 -10 -------- Run | Yrd Mat Sub Total Allies . | . . . Largest Group . | . . . Highest-Rated Group . | . . . Highest-Rated Ally . | . . . Total Orders . | . . . Ally Attacks . | . . . Total Damage . | . . . Kills . | . . . Allies Corrupted . | . . . Allies Melted . | . . . Intel | -11 -10 -10 ------- Run | Yrd Mat Sub Active Infowar (turns) 755 | 18 569 168 Structural 158 | . 127 31 Seismic 597 | 18 442 137 Robot Analysis Total . | . . . Derelict Logs Recovered . | . . . Drone Launches . | . . . Drone Recoveries . | . . . Exploration | -11 -10 -10 ------------- Run | Yrd Mat Sub Turns Passed 863 | 85 571 207 Spaces Moved 504 | 50 357 97 Core 5 | 5 . . Treads . | . . . Legs 499 | 45 357 97 Wheels . | . . . Hover . | . . . Flight . | . . . Fastest Speed 50 | 50 120 120 Average Speed 120 | 113 120 128 Slowest Speed 130 | 120 120 130 Overloaded Moves . | . . . Propulsion Burnouts . | . . . Robots Hopped . | . . . Potential Cave-ins . | . . . Cave-ins Triggered . | . . . Exploration Rate (%) 21 | 4 52 7 Regions Visited 2 Branch Regions 1 Pre-discovered Areas . | . . . Known Exits Taken . | . . . Unknown Exits Taken 2 | 1 1 . Scrap Searched . | . . . Spaces Dug 5 | . 5 . Terrain Destroyed 31 | . 31 . Melee . | . . . Projectile 5 | . 5 . AOE 26 | . 26 . Terrain Rammed . | . . . Walls Destroyed . | . . . Machines Disabled . | . . . Actions | -11 -10 -10 --------- Run | Yrd Mat Sub Total 643 | 64 444 135 Wait 46 | . 38 8 Move 502 | 49 356 97 Hop . | . . . Pick Up 8 | 2 6 . Fast Attach 7 | 7 . . Attach 1 | . . 1 Detach . | . . . Swap 19 | . 15 4 Drop 2 | . 2 . Fire 55 | 6 24 25 Melee . | . . . Ram . | . . . Kick 3 | . 3 . Crush . | . . . Escape Stasis . | . . . Rewire . | . . . Trap . | . . . Miscellaneous . | . . . Route ------- -11/Scrapyard -10/Materials (discovered 2 exits: [*Mat] / [*Sub]) -10/Subcaves History --------- Turn | Location | Event 3 | -11/Scrapyard | Discovered new exit (range 16) 86 | -11/Scrapyard | Entered Materials 195 | -10/Materials | Discovered new exit (range 12) 302 | -10/Materials | Build established: Mutant 507 | -10/Materials | Discovered new exit (range 15) 657 | -10/Materials | Entered Subcaves 658 | -10/Subcaves | Shifting Twisted Machinery released Mak. Leg 674 | -10/Subcaves | Core integrity fell below 50% 843 | -10/Subcaves | Core integrity fell below 20% 864 | -10/Subcaves | Destroyed by KT-1X5(R) with Subdweller Machine Gun Last Messages --------------- Trojan loaded successfully. Testing... Terminal linked with 0 systems. Please expand to 4 more systems! 00627_ K-01 Serf cleans the Electrolysis Chamber. 00650_ K-01 Serf collects debris. LOCATION=UNKNOWN AMBIENT_HEAT=-10 GOAL=ESCAPE Mak. Leg falls loose from the Twisted Machinery. 00666_ NL-69V(R) suffers critical hit (Burn). 00687_ Lgt. Assault Rifle destroyed. 00692_ Sub. Monowheel melted. 00692_ Sub. Power Source melted. 00692_ NL-69V(R) destroyed. 00697_ Acquired 47 matter. 00700_ Subatomizers dissect the Disposable Heat Sink. 00839_ EE-MM6(O) collects matter. 00850_ EE-MM6(O) puts together Sub. Power Source. 00856_ Ion Engine destroyed. Map ----- +----------------------------------------------------+ | ?????????????????????????????????????????????????? | | ?????????????????????????????????????????????????? | | ?????????????????????????????????????????????????? | | ?????????????????????????????????????????????????? | | ?????????????????????????????????????????????????? | | ?????????????????????????????????????????????????? | | ??????????? ###??????????????????????????????????? | | ?????????? #?????????????????????????????????? | | ??????????# ####?????????????????????????????? | | ??????????# ###???????????????????????????? | | ??????????# #???????????????????????????? | | ??????????# ???????????????????????????? | | ??????????# ????????????????????????????? | | ???????????# ????????###??????????????????? | | ????????????# #???????? #??????????????????? | | ????????????# #???????? ??????????????????? | | ?????????????# #????????? ??????????????????? | | ????????????## #????????# ###???????????????? | | ????????????# #######?? # ##??????????????? | | ???????????## #?? #####??????????? | | ?????????### ##?# #??????????? | | ????????## #### #?# ????????????? | | ????????# ##?## #?# ??????????????? | | ????????## # ####??# #?# #????????????????? | | ????????## ####????## ### #?????????????????? | | ????????## #???????# @ R #?????????????????? | | ????????# #???????# #?????????????????? | | ????????## #??###??# #?????????????????? | | ????????## #### #?# ## #????????????????? | | ???????### ## ## ###### #???????????????? | | ???????### ### ###???% #??????????????? | | ??????### ### #??? #?????????????? | | ??????### ### #???? #????????????? | | ??????## ### #???? ## #???????????? | | ??????## ##### ###????##?####???????????? | | ??????### ##??## #######?????????????????????? | | ???????## &!######### ###?????????????????????? | | ???????### & !######## ##?????????????????????? | | ????????## & ## # ###?????????????????????? | | ??????#### "###??????????????????????? | | ??????#### """##???????????????????????? | | ??????## ######""" ##???????????????????????? | | ??????## "######" ##???????????????????????? | | ??????## "###?# ##???????????????????????? | | ??????## ""##?? #### ???????????????????????? | | ??????## ##" ""##?? #### ???????????????????????? | | ??????#####"""###?? "##??????????????????????????? | | ??????##### #####? ""##??????????????????????????? | | ?????????#######?? " ??????????????????????????? | | ?????????#####???# ?????????????????????????????? | +----------------------------------------------------+ Best States ------------- Heat Dissipation 39 Energy Generation 10 Energy Capacity 250 Matter Stores 300 Matter Capacity 300 Sight Range 16 Terrain Scan Density 10 Evasion (%) 55 Item Schematics ----------------- None Robot Schematics ------------------ None Fabricated ------------ Nothing Repaired ---------- Nothing Alien Tech Used ----------------- None Achievements -------------- None Challenges ------------ None Game ------ Seed FusionStealthChip Manual? 0 Play Time 00:08:41 Cumulative 81.0 hours Start 2025.05.10 @ 13:46:26 End 2025.05.10 @ 13:53:41 Sessions 1 Manual Loads 0 Difficulty Rogue Special Mode None Game No. 88 Rogue 88 Adventurer 0 Explorer 0 Win Type - Total 1 Types 1/0/0/0/0/0/0/0/0/0 Lore% 40 Gallery% 47 Achievement% 41 Wizard Run 0 Options --------- Layout 0 ASCII 0 Keyboard 1 Movement Numpad Keybinds 0 Fullscreen 1 Font 24/Terminus Map View 76x50 Zoom Use 0% Tactical HUD 1 Map Filters NONE Filters NONE Steam 1 RUN: ff529c0b-c8f1-4bd4-8dcd-183863d67cdf